Workbook

Sheet ZADANI
A1: SOUTĚŽNÍ TÝM | B1: Stanice Valašské Meziříčí "A" | C1: Stanice Vsetín "C" | D1: Stanice Valašské Meziříčí "B" | E1: Stanice Valašské Meziříčí "C" | F1: Stanice Vsetín "A" | G1: Stanice Vsetín "B"
A2: TAKTIKA PROVEDENÍ ZÁSAHU
A3: Přístup týmu a průzkum
A4: Rizika a nebezpečí rozpoznána a vyhodnocena | B4: 6 | C4: 6 | D4: 8 | E4: 6 | F4: 6 | G4: 9
A5: Celkový vnitřní a vnější průzkum | B5: 6 | C5: 6 | D5: 8 | E5: 7 | F5: 7 | G5: 9
A6: Výchozí priority sděleny členům | B6: 6 | C6: 8 | D6: 9 | E6: 5 | F6: 6 | G6: 9
A7: Plánování
A8: Plán vyproštění | B8: 8 | C8: 8 | D8: 9 | E8: 8 | F8: 8 | G8: 10
A9: Dodržení plánu | B9: 8 | C9: 8 | D9: 9 | E9: 6 | F9: 8 | G9: 8
A10: Povely zadané a pochopené | B10: 8 | C10: 8 | D10: 9 | E10: 6 | F10: 8 | G10: 8
A11: Velení
A12: Příkazy a velení, správná pozice | B12: 6 | C12: 8 | D12: 9 | E12: 5 | F12: 6 | G12: 9
A13: Správný postup | B13: 5 | C13: 8 | D13: 8 | E13: 7 | F13: 7 | G13: 7
A14: Postup velitele | B14: 7 | C14: 9 | D14: 8 | E14: 5 | F14: 6 | G14: 8
A15: Spolupráce a komunikace
A16: Celková komunikace týmu | B16: 6 | C16: 9 | D16: 9 | E16: 5 | F16: 5 | G16: 8
A17: Operativní schopnosti | B17: 6 | C17: 8 | D17: 8 | E17: 6 | F17: 5 | G17: 9
A18: Komunikace s KOPIS | B18: 2 | C18: 6 | D18: 10 | E18: 7 | F18: 7 | G18: 9
A19: Protipožární zabezpečení a úniky
A20: Zajištění proti požáru | B20: 9 | C20: 9 | D20: 9 | E20: 9 | F20: 9 | G20: 9
A21: Zabezpečení úniku kapalin | B21: 4 | C21: 4 | D21: 6 | E21: 7 | F21: 7 | G21: 8
A22: Řešení AKU a airbagů | B22: 1 | C22: 5 | D22: 6 | E22: 3 | F22: 5 | G22: 5
A23: Bezpečnost
A24: Použití OOP | B24: 6 | C24: 6 | D24: 9 | E24: 6 | F24: 5 | G24: 5
A25: Dodržení bezpečné pracovní zóny | B25: 7 | C25: 6 | D25: 9 | E25: 7 | F25: 5 | G25: 7
A26: Označení místa nehody | B26: 8 | C26: 9 | D26: 9 | E26: 9 | F26: 9 | G26: 9
A27: Obhajoba postupu (0 - 5 bodů) | C27: 3 | E27: 1
A28: Kompenzace složitosti scénáře (0 - 10 bodů)
A29: SOUČET BODŮ CELKEM (max. 195 bodů) | B29: =SUM(B2:B28) -> 109 | C29: =SUM(C2:C28) -> 134 | D29: 152 | E29: 115 | F29: 119 | G29: 146 | H29: =SUM(H2:H28) -> 0 | I29: =SUM(I2:I28) -> 0 | J29: =SUM(J2:J28) -> 0 | K29: =SUM(K2:K28) -> 0 | L29: 0 | M29: 0 | N29: 0 | O29: 0 | P29: 0 | Q29: 0 | R29: 0 | S29: 0 | T29: 0 | U29: 0
A30: POŘADÍ | B30: =IF(B$29>0,SUMPRODUCT(($B$29:$U$29>=B$29)/COUNTIF($B$29:$U$29,""&$B$29:$U$29)),"") -> 6 | C30: =IF(C$29>0,SUMPRODUCT(($B$29:$U$29>=C$29)/COUNTIF($B$29:$U$29,""&$B$29:$U$29)),"") -> 3 | D30: 1 | E30: 5 | F30: 4 | G30: 2
A31: TECHNIKA PROVEDENÍ ZÁSAHU
A32: Stabilizace a příprava vozidla (sklo)
A33: Stabilizace, rychlost a smysl | B33: 6 | C33: 6 | D33: 8 | E33: 6 | F33: 5 | G33: 6
A34: Pravidelná kontrola | B34: 3 | C34: 3 | D34: 6 | E34: 4 | F34: 5 | G34: 6
A35: Řešení skla, načasování a smysl | B35: 5 | C35: 7 | D35: 6 | E35: 5 | F35: 5 | G35: 5
A36: Ochrana zraněné osoby
A37: Použití ochranných prostředků | B37: 6 | C37: 6 | D37: 8 | E37: 5 | F37: 5 | G37: 7
A38: Vyhodnocení rizik uvnitř vozidla, reakce na ně | B38: 0 | C38: 5 | D38: 8 | E38: 4 | F38: 5 | G38: 6
A39: Ochrana dle vzniklé situace | B39: 2 | C39: 4 | D39: 9 | E39: 3 | F39: 6 | G39: 6
A40: Vytvoření prostoru pro přístup a manipulaci se zraněnou osobou
A41: Včasný počáteční přístup | B41: 3 | C41: 8 | D41: 7 | E41: 5 | F41: 6 | G41: 9
A42: Účinný postup vyproštění | B42: 4 | C42: 7 | D42: 8 | E42: 5 | F42: 6 | G42: 8
A43: Výsledný vytvořený prostor | B43: 8 | C43: 7 | D43: 8 | E43: 5 | F43: 7 | G43: 7
A44: Ovládání nářadí
A45: Vyprošťovací nářadí a správná technika vytvoření prostoru | B45: 5 | C45: 6 | D45: 8 | E45: 5 | F45: 7 | G45: 7
A46: Ovládání nářadí, volba použití (úhlů) | B46: 3 | C46: 6 | D46: 8 | E46: 3 | F46: 6 | G46: 7
A47: Znalost nebezpečí, rozpoznání, identifikace, následné jednání | B47: 3 | C47: 6 | D47: 9 | E47: 3 | F47: 5 | G47: 6
A48: Uvolnění, vyproštění a transport zraněné osoby
A49: Přijatelné prostředí, žádné nežádoucí pohyby | B49: 4 | C49: 3 | D49: 7 | E49: 1 | F49: 7 | G49: 7
A50: Závěrečné vyproštění (vytažení) | B50: 8 | C50: 7 | D50: 7 | E50: 6 | F50: 7 | G50: 7
A51: Ochrana zraněného | B51: 3 | C51: 7 | D51: 6 | E51: 5 | F51: 7 | G51: 6
A52: Bezpečnost a týmová spolupráce při vyprošťování
A53: Změna postupu, příprava a provedení | B53: 5 | C53: 7 | D53: 7 | E53: 4 | F53: 6 | G53: 7
A54: Bezpečnost a OOP | B54: 5 | C54: 5 | D54: 6 | E54: 3 | F54: 6 | G54: 7
A55: Práce s nástroji | B55: 5 | C55: 6 | D55: 7 | E55: 5 | F55: 6 | G55: 8
A56: Obhajoba postupu (0 - 5 bodů)
A57: Kompenzace složitosti scénáře (0 - 10 bodů)
A58: SOUČET BODŮ CELKEM (max. 195 bodů) | B58: =SUM(B31:B57) -> 78 | C58: =SUM(C31:C57) -> 106 | D58: 133 | E58: 77 | F58: 107 | G58: 122 | H58: =SUM(H31:H57) -> 0 | I58: 0 | J58: 0 | K58: 0 | L58: =SUM(L31:L57) -> 0 | M58: 0 | N58: 0 | O58: 0 | P58: 0 | Q58: 0 | R58: 0 | S58: 0 | T58: 0 | U58: 0
A59: POŘADÍ | B59: =IF(B$58>0,SUMPRODUCT(($B$58:$U$58>=B$58)/COUNTIF($B$58:$U$58,""&$B$58:$U$58)),"") -> 5 | C59: =IF(C$58>0,SUMPRODUCT(($B$58:$U$58>=C$58)/COUNTIF($B$58:$U$58,""&$B$58:$U$58)),"") -> 4 | D59: 1 | E59: 6 | F59: 3 | G59: 2
A60: PRVNÍ PŘEDLÉKAŘSKÁ POMOC
A61: Přístup a kontakt
A62: Průzkum, oslovení (nehýbat hlavou), představení, bezpečnost zdravotníka - částečná stabilizace | B62: 6 | C62: 10 | D62: 7 | E62: 4 | F62: 10 | G62: 9
A63: Život zachraňující úkony, záklon hlavy, uklidnění | B63: 5 | C63: 10 | D63: 4 | E63: 8 | F63: 8 | G63: 10
A64: Ohrožení zdravotníka a zraněného, bezpečný vstup (sklo, ostré hrany, končetiny z vozu), přístup | B64: 4 | C64: 8 | D64: 9 | E64: 6 | F64: 7 | G64: 8
A65: Vyšetření a zajištění
A66: Fixace páteře, nasazení krčního límce jde-li (rukavice) | B66: 6 | C66: 7 | D66: 6 | E66: 9 | F66: 8 | G66: 8
A67: Zajištění dýchacích cest, podání kyslíku, tepelný komfort | B67: 5 | C67: 9 | D67: 6 | E67: 7 | F67: 8 | G67: 10
A68: Celková prohlídka zraněného | B68: 7 | C68: 9 | D68: 6 | E68: 7 | F68: 10 | G68: 10
A69: Vybavení
A70: Zdravotní pomůcky - manipulace, zacházení | B70: 4 | C70: 10 | D70: 6 | E70: 8 | F70: 8 | G70: 9
A71: Umí použít pomůcky - monitoring během zásahu + pulzní oxymetr | B71: 6 | C71: 8 | D71: 9 | E71: 9 | F71: 9 | G71: 9
A72: Ochrana zraněné osoby | B72: 2 | C72: 9 | D72: 8 | E72: 9 | F72: 6 | G72: 9
A73: Vyproštění
A74: Příprava zraněného na transport, polohování, naložení na desku | B74: 7 | C74: 9 | D74: 7 | E74: 9 | F74: 8 | G74: 9
A75: Transport zraněného, deska, vyproštění, transport z vozidla | B75: 9 | C75: 10 | D75: 8 | E75: 8 | F75: 7 | G75: 7
A76: Bezpečnost zraněného | B76: 7 | C76: 9 | D76: 7 | E76: 9 | F76: 9 | G76: 9
A77: Komunikace
A78: S velitelem, s týmem - koordinace | B78: 6 | C78: 8 | D78: 10 | E78: 8 | F78: 9 | G78: 10
A79: Se zraněným | B79: 9 | C79: 10 | D79: 9 | E79: 8 | F79: 9 | G79: 10
A80: Bonus zdravotníka | C80: 7 | D80: 6 | E80: 7 | G80: 8
A81: Předání
A82: Stav před příjezdem, při předání | B82: 8 | C82: 9 | D82: 6 | E82: 8 | F82: 9 | G82: 9
A83: Výsledek vyšetření a zajištění zraněného | B83: 9 | C83: 9 | D83: 6 | E83: 9 | F83: 9 | G83: 10
A84: Psychologické aspekty, hodnocení figuranta | B84: 9 | C84: 9 | D84: 6 | E84: 9 | F84: 8 | G84: 9
A85: Obhajoba postupu (0 - 5 bodů)
A86: Kompenzace složitosti scénáře (0 - 10 bodů)
A87: SOUČET BODŮ CELKEM (max. 195 bodů) | B87: =SUM(B60:B86) -> 109 | C87: =SUM(C60:C86) -> 160 | D87: 126 | E87: 142 | F87: 142 | G87: 163 | H87: =SUM(H60:H86) -> 0 | I87: 0 | J87: 0 | K87: 0 | L87: =SUM(L60:L86) -> 0 | M87: 0 | N87: 0 | O87: 0 | P87: 0 | Q87: 0 | R87: 0 | S87: 0 | T87: 0 | U87: 0
A88: POŘADÍ | B88: =IF(B$87>0,SUMPRODUCT(($B$87:$U$87>=B$87)/COUNTIF($B$87:$U$87,""&$B$87:$U$87)),"") -> 5 | C88: =IF(C$87>0,SUMPRODUCT(($B$87:$U$87>=C$87)/COUNTIF($B$87:$U$87,""&$B$87:$U$87)),"") -> 2 | D88: 4 | E88: 3 | F88: 3 | G88: 1
A89: DOSAŽENÝ ČAS
A90: Minuty | B90: 16 | C90: 16 | D90: 19 | E90: 18 | F90: 15 | G90: 13
A91: Sekundy | B91: 45 | C91: 21 | D91: 49 | E91: 43 | F91: 59 | G91: 13
A92: Body za čas | B92: =IF(AND(B$90>14,B$90<18),(CEILING(((B$90-15)*60+B$91)/20,1)),0)+IF(AND(B$90>17,B$90<20),9+3*(CEILING(((B$90-18)*60+B$91)/20,1)),0) -> 6 | C92: =IF(AND(C$90>14,C$90<18),(CEILING(((C$90-15)*60+C$91)/20,1)),0)+IF(AND(C$90>17,C$90<20),9+3*(CEILING(((C$90-18)*60+C$91)/20,1)),0) -> 5 | D92: 27 | E92: 18 | F92: 3 | G92: 0 | H92: 0 | I92: 0 | J92: 0 | K92: 0 | L92: 0 | M92: 0 | N92: 0 | O92: 0 | P92: 0 | Q92: 0 | R92: 0 | S92: 0 | T92: 0 | U92: 0
A93: CELKOVÉ BODY | B93: =IF(B$92="N",0,IF(B$92<(B$29+B$58+B$87),B$29+B$58+B$87-B$92,0)) -> 290 | C93: =IF(C$92="N",0,IF(C$92<(C$29+C$58+C$87),C$29+C$58+C$87-C$92,0)) -> 395 | D93: 384 | E93: 316 | F93: 365 | G93: 431 | H93: 0 | I93: 0 | J93: 0 | K93: 0 | L93: 0 | M93: 0 | N93: 0 | O93: 0 | P93: 0 | Q93: 0 | R93: 0 | S93: 0 | T93: 0 | U93: 0

Sheet VYHODNOCENI
A1: CELKOVÉ POŘADÍ | E1: Místo soutěže: | G1: Vsetín
E2: Datum: | G2: 2022-04-26
A5: Soutěžní tým | B5: Čas | C5: Hodnocení | J5: Celkové body | K5: Čas v sekundách | L5: Průměr pořadí | M5: CELKOVÉ POŘADÍ
C6: body za čas | D6: Taktika provedení zásahu | F6: Technika provedení zásahu | H6: První předlékařská pomoc
D7: body | E7: pořadí | F7: body | G7: pořadí | H7: body | I7: pořadí
A8: =ZADANI!$G$1 -> Stanice Vsetín "B" | B8: =IF(AND(ISBLANK(ZADANI!$G$90),ISBLANK(ZADANI!$G$91)),"",ZADANI!$G$90&" : "&ZADANI!$G$91) -> 13 : 13 | C8: =ZADANI!$G$92 -> 0 | D8: =ZADANI!$G$29 -> 146 | E8: =ZADANI!$G$30 -> 2 | F8: =ZADANI!$G$58 -> 122 | G8: =ZADANI!$G$59 -> 2 | H8: =ZADANI!$G$87 -> 163 | I8: =ZADANI!$G$88 -> 1 | J8: =ZADANI!$G$93 -> 431 | K8: =IF($J8=0,"",ZADANI!$G$90*60+ZADANI!$G$91) -> 793 | L8: =IF($J8=0,"",ROUND(($E8+$G8+$I8)/3,3)) -> 1.667 | M8: =IF($J8=0,"",RANK($J8,$J$8:$J$27,0)) -> 1 | N8: 6
A9: =ZADANI!$C$1 -> Stanice Vsetín "C" | B9: =IF(AND(ISBLANK(ZADANI!$C$90),ISBLANK(ZADANI!$C$91)),"",ZADANI!$C$90&" : "&ZADANI!$C$91) -> 16 : 21 | C9: =ZADANI!$C$92 -> 5 | D9: =ZADANI!$C$29 -> 134 | E9: =ZADANI!$C$30 -> 3 | F9: =ZADANI!$C$58 -> 106 | G9: =ZADANI!$C$59 -> 4 | H9: =ZADANI!$C$87 -> 160 | I9: =ZADANI!$C$88 -> 2 | J9: =ZADANI!$C$93 -> 395 | K9: =IF($J9=0,"",ZADANI!$C$90*60+ZADANI!$C$91) -> 981 | L9: =IF($J9=0,"",ROUND(($E9+$G9+$I9)/3,3)) -> 3 | M9: =IF($J9=0,"",RANK($J9,$J$8:$J$27,0)) -> 2 | N9: 2
A10: =ZADANI!$D$1 -> Stanice Valašské Meziříčí "B" | B10: =IF(AND(ISBLANK(ZADANI!$D$90),ISBLANK(ZADANI!$D$91)),"",ZADANI!$D$90&" : "&ZADANI!$D$91) -> 19 : 49 | C10: =ZADANI!$D$92 -> 27 | D10: =ZADANI!$D$29 -> 152 | E10: =ZADANI!$D$30 -> 1 | F10: =ZADANI!$D$58 -> 133 | G10: =ZADANI!$D$59 -> 1 | H10: =ZADANI!$D$87 -> 126 | I10: =ZADANI!$D$88 -> 4 | J10: =ZADANI!$D$93 -> 384 | K10: =IF($J10=0,"",ZADANI!$D$90*60+ZADANI!$D$91) -> 1189 | L10: =IF($J10=0,"",ROUND(($E10+$G10+$I10)/3,3)) -> 2 | M10: =IF($J10=0,"",RANK($J10,$J$8:$J$27,0)) -> 3 | N10: 3
A11: =ZADANI!$F$1 -> Stanice Vsetín "A" | B11: =IF(AND(ISBLANK(ZADANI!$F$90),ISBLANK(ZADANI!$F$91)),"",ZADANI!$F$90&" : "&ZADANI!$F$91) -> 15 : 59 | C11: =ZADANI!$F$92 -> 3 | D11: =ZADANI!$F$29 -> 119 | E11: =ZADANI!$F$30 -> 4 | F11: =ZADANI!$F$58 -> 107 | G11: =ZADANI!$F$59 -> 3 | H11: =ZADANI!$F$87 -> 142 | I11: =ZADANI!$F$88 -> 3 | J11: =ZADANI!$F$93 -> 365 | K11: =IF($J11=0,"",ZADANI!$F$90*60+ZADANI!$F$91) -> 959 | L11: =IF($J11=0,"",ROUND(($E11+$G11+$I11)/3,3)) -> 3.333 | M11: =IF($J11=0,"",RANK($J11,$J$8:$J$27,0)) -> 4 | N11: 5
A12: =ZADANI!$E$1 -> Stanice Valašské Meziříčí "C" | B12: =IF(AND(ISBLANK(ZADANI!$E$90),ISBLANK(ZADANI!$E$91)),"",ZADANI!$E$90&" : "&ZADANI!$E$91) -> 18 : 43 | C12: =ZADANI!$E$92 -> 18 | D12: =ZADANI!$E$29 -> 115 | E12: =ZADANI!$E$30 -> 5 | F12: =ZADANI!$E$58 -> 77 | G12: =ZADANI!$E$59 -> 6 | H12: =ZADANI!$E$87 -> 142 | I12: =ZADANI!$E$88 -> 3 | J12: =ZADANI!$E$93 -> 316 | K12: =IF($J12=0,"",ZADANI!$E$90*60+ZADANI!$E$91) -> 1123 | L12: =IF($J12=0,"",ROUND(($E12+$G12+$I12)/3,3)) -> 4.667 | M12: =IF($J12=0,"",RANK($J12,$J$8:$J$27,0)) -> 5 | N12: 4
A13: =ZADANI!$B$1 -> Stanice Valašské Meziříčí "A" | B13: =IF(AND(ISBLANK(ZADANI!$B$90),ISBLANK(ZADANI!$B$91)),"",ZADANI!$B$90&" : "&ZADANI!$B$91) -> 16 : 45 | C13: =ZADANI!$B$92 -> 6 | D13: =ZADANI!$B$29 -> 109 | E13: =ZADANI!$B$30 -> 6 | F13: =ZADANI!$B$58 -> 78 | G13: =ZADANI!$B$59 -> 5 | H13: =ZADANI!$B$87 -> 109 | I13: =ZADANI!$B$88 -> 5 | J13: =ZADANI!$B$93 -> 290 | K13: =IF($J13=0,"",ZADANI!$B$90*60+ZADANI!$B$91) -> 1005 | L13: =IF($J13=0,"",ROUND(($E13+$G13+$I13)/3,3)) -> 5.333 | M13: =IF($J13=0,"",RANK($J13,$J$8:$J$27,0)) -> 6 | N13: 1
A14: =ZADANI!$H$1 -> 0 | B14: =IF(AND(ISBLANK(ZADANI!$H$90),ISBLANK(ZADANI!$H$91)),"",ZADANI!$H$90&" : "&ZADANI!$H$91) ->  | C14: =ZADANI!$H$92 -> 0 | D14: =ZADANI!$H$29 -> 0 | E14: =ZADANI!$H$30 ->  | F14: =ZADANI!$H$58 -> 0 | G14: =ZADANI!$H$59 ->  | H14: =ZADANI!$H$87 -> 0 | I14: =ZADANI!$H$88 ->  | J14: =ZADANI!$H$93 -> 0 | K14: =IF($J14=0,"",ZADANI!$H$90*60+ZADANI!$H$91) ->  | L14: =IF($J14=0,"",ROUND(($E14+$G14+$I14)/3,3)) ->  | M14: =IF($J14=0,"",RANK($J14,$J$8:$J$27,0)) ->  | N14: 7
A15: =ZADANI!$I$1 -> 0 | B15: =IF(AND(ISBLANK(ZADANI!$I$90),ISBLANK(ZADANI!$I$91)),"",ZADANI!$I$90&" : "&ZADANI!$I$91) ->  | C15: =ZADANI!$I$92 -> 0 | D15: =ZADANI!$I$29 -> 0 | E15: =ZADANI!$I$30 ->  | F15: =ZADANI!$I$58 -> 0 | G15: =ZADANI!$I$59 ->  | H15: =ZADANI!$I$87 -> 0 | I15: =ZADANI!$I$88 ->  | J15: =ZADANI!$I$93 -> 0 | K15: =IF($J15=0,"",ZADANI!$I$90*60+ZADANI!$I$91) ->  | L15: =IF($J15=0,"",ROUND(($E15+$G15+$I15)/3,3)) ->  | M15: =IF($J15=0,"",RANK($J15,$J$8:$J$27,0)) ->  | N15: 8
A16: =ZADANI!$J$1 -> 0 | B16: =IF(AND(ISBLANK(ZADANI!$J$90),ISBLANK(ZADANI!$J$91)),"",ZADANI!$J$90&" : "&ZADANI!$J$91) ->  | C16: =ZADANI!$J$92 -> 0 | D16: =ZADANI!$J$29 -> 0 | E16: =ZADANI!$J$30 ->  | F16: =ZADANI!$J$58 -> 0 | G16: =ZADANI!$J$59 ->  | H16: =ZADANI!$J$87 -> 0 | I16: =ZADANI!$J$88 ->  | J16: =ZADANI!$J$93 -> 0 | K16: =IF($J16=0,"",ZADANI!$J$90*60+ZADANI!$J$91) ->  | L16: =IF($J16=0,"",ROUND(($E16+$G16+$I16)/3,3)) ->  | M16: =IF($J16=0,"",RANK($J16,$J$8:$J$27,0)) ->  | N16: 9
A17: =ZADANI!$K$1 -> 0 | B17: =IF(AND(ISBLANK(ZADANI!$K$90),ISBLANK(ZADANI!$K$91)),"",ZADANI!$K$90&" : "&ZADANI!$K$91) ->  | C17: =ZADANI!$K$92 -> 0 | D17: =ZADANI!$K$29 -> 0 | E17: =ZADANI!$K$30 ->  | F17: =ZADANI!$K$58 -> 0 | G17: =ZADANI!$K$59 ->  | H17: =ZADANI!$K$87 -> 0 | I17: =ZADANI!$K$88 ->  | J17: =ZADANI!$K$93 -> 0 | K17: =IF($J17=0,"",ZADANI!$K$90*60+ZADANI!$K$91) ->  | L17: =IF($J17=0,"",ROUND(($E17+$G17+$I17)/3,3)) ->  | M17: =IF($J17=0,"",RANK($J17,$J$8:$J$27,0)) ->  | N17: 10
A18: =ZADANI!$L$1 -> 0 | B18: =IF(AND(ISBLANK(ZADANI!$L$90),ISBLANK(ZADANI!$L$91)),"",ZADANI!$L$90&" : "&ZADANI!$L$91) ->  | C18: =ZADANI!$L$92 -> 0 | D18: =ZADANI!$L$29 -> 0 | E18: =ZADANI!$L$30 ->  | F18: =ZADANI!$L$58 -> 0 | G18: =ZADANI!$L$59 ->  | H18: =ZADANI!$L$87 -> 0 | I18: =ZADANI!$L$88 ->  | J18: =ZADANI!$L$93 -> 0 | K18: =IF($J18=0,"",ZADANI!$L$90*60+ZADANI!$L$91) ->  | L18: =IF($J18=0,"",ROUND(($E18+$G18+$I18)/3,3)) ->  | M18: =IF($J18=0,"",RANK($J18,$J$8:$J$27,0)) ->  | N18: 11
A19: =ZADANI!$M$1 -> 0 | B19: =IF(AND(ISBLANK(ZADANI!$M$90),ISBLANK(ZADANI!$M$91)),"",ZADANI!$M$90&" : "&ZADANI!$M$91) ->  | C19: =ZADANI!$M$92 -> 0 | D19: =ZADANI!$M$29 -> 0 | E19: =ZADANI!$M$30 ->  | F19: =ZADANI!$M$58 -> 0 | G19: =ZADANI!$M$59 ->  | H19: =ZADANI!$M$87 -> 0 | I19: =ZADANI!$M$88 ->  | J19: =ZADANI!$M$93 -> 0 | K19: =IF($J19=0,"",ZADANI!$M$90*60+ZADANI!$M$91) ->  | L19: =IF($J19=0,"",ROUND(($E19+$G19+$I19)/3,3)) ->  | M19: =IF($J19=0,"",RANK($J19,$J$8:$J$27,0)) ->  | N19: 12
A20: =ZADANI!$N$1 -> 0 | B20: =IF(AND(ISBLANK(ZADANI!$N$90),ISBLANK(ZADANI!$N$91)),"",ZADANI!$N$90&" : "&ZADANI!$N$91) ->  | C20: =ZADANI!$N$92 -> 0 | D20: =ZADANI!$N$29 -> 0 | E20: =ZADANI!$N$30 ->  | F20: =ZADANI!$N$58 -> 0 | G20: =ZADANI!$N$59 ->  | H20: =ZADANI!$N$87 -> 0 | I20: =ZADANI!$N$88 ->  | J20: =ZADANI!$N$93 -> 0 | K20: =IF($J20=0,"",ZADANI!$N$90*60+ZADANI!$N$91) ->  | L20: =IF($J20=0,"",ROUND(($E20+$G20+$I20)/3,3)) ->  | M20: =IF($J20=0,"",RANK($J20,$J$8:$J$27,0)) ->  | N20: 13
A21: =ZADANI!$O$1 -> 0 | B21: =IF(AND(ISBLANK(ZADANI!$O$90),ISBLANK(ZADANI!$O$91)),"",ZADANI!$O$90&" : "&ZADANI!$O$91) ->  | C21: =ZADANI!$O$92 -> 0 | D21: =ZADANI!$O$29 -> 0 | E21: =ZADANI!$O$30 ->  | F21: =ZADANI!$O$58 -> 0 | G21: =ZADANI!$O$59 ->  | H21: =ZADANI!$O$87 -> 0 | I21: =ZADANI!$O$88 ->  | J21: =ZADANI!$O$93 -> 0 | K21: =IF($J21=0,"",ZADANI!$O$90*60+ZADANI!$O$91) ->  | L21: =IF($J21=0,"",ROUND(($E21+$G21+$I21)/3,3)) ->  | M21: =IF($J21=0,"",RANK($J21,$J$8:$J$27,0)) ->  | N21: 14
A22: =ZADANI!$P$1 -> 0 | B22: =IF(AND(ISBLANK(ZADANI!$P$90),ISBLANK(ZADANI!$P$91)),"",ZADANI!$P$90&" : "&ZADANI!$P$91) ->  | C22: =ZADANI!$P$92 -> 0 | D22: =ZADANI!$P$29 -> 0 | E22: =ZADANI!$P$30 ->  | F22: =ZADANI!$P$58 -> 0 | G22: =ZADANI!$P$59 ->  | H22: =ZADANI!$P$87 -> 0 | I22: =ZADANI!$P$88 ->  | J22: =ZADANI!$P$93 -> 0 | K22: =IF($J22=0,"",ZADANI!$P$90*60+ZADANI!$P$91) ->  | L22: =IF($J22=0,"",ROUND(($E22+$G22+$I22)/3,3)) ->  | M22: =IF($J22=0,"",RANK($J22,$J$8:$J$27,0)) ->  | N22: 15
A23: =ZADANI!$Q$1 -> 0 | B23: =IF(AND(ISBLANK(ZADANI!$Q$90),ISBLANK(ZADANI!$Q$91)),"",ZADANI!$Q$90&" : "&ZADANI!$Q$91) ->  | C23: =ZADANI!$Q$92 -> 0 | D23: =ZADANI!$Q$29 -> 0 | E23: =ZADANI!$Q$30 ->  | F23: =ZADANI!$Q$58 -> 0 | G23: =ZADANI!$Q$59 ->  | H23: =ZADANI!$Q$87 -> 0 | I23: =ZADANI!$Q$88 ->  | J23: =ZADANI!$Q$93 -> 0 | K23: =IF($J23=0,"",ZADANI!$Q$90*60+ZADANI!$Q$91) ->  | L23: =IF($J23=0,"",ROUND(($E23+$G23+$I23)/3,3)) ->  | M23: =IF($J23=0,"",RANK($J23,$J$8:$J$27,0)) ->  | N23: 16
A24: =ZADANI!$R$1 -> 0 | B24: =IF(AND(ISBLANK(ZADANI!$R$90),ISBLANK(ZADANI!$R$91)),"",ZADANI!$R$90&" : "&ZADANI!$R$91) ->  | C24: =ZADANI!$R$92 -> 0 | D24: =ZADANI!$R$29 -> 0 | E24: =ZADANI!$R$30 ->  | F24: =ZADANI!$R$58 -> 0 | G24: =ZADANI!$R$59 ->  | H24: =ZADANI!$R$87 -> 0 | I24: =ZADANI!$R$88 ->  | J24: =ZADANI!$R$93 -> 0 | K24: =IF($J24=0,"",ZADANI!$R$90*60+ZADANI!$R$91) ->  | L24: =IF($J24=0,"",ROUND(($E24+$G24+$I24)/3,3)) ->  | M24: =IF($J24=0,"",RANK($J24,$J$8:$J$27,0)) ->  | N24: 17
A25: =ZADANI!$S$1 -> 0 | B25: =IF(AND(ISBLANK(ZADANI!$S$90),ISBLANK(ZADANI!$S$91)),"",ZADANI!$S$90&" : "&ZADANI!$S$91) ->  | C25: =ZADANI!$S$92 -> 0 | D25: =ZADANI!$S$29 -> 0 | E25: =ZADANI!$S$30 ->  | F25: =ZADANI!$S$58 -> 0 | G25: =ZADANI!$S$59 ->  | H25: =ZADANI!$S$87 -> 0 | I25: =ZADANI!$S$88 ->  | J25: =ZADANI!$S$93 -> 0 | K25: =IF($J25=0,"",ZADANI!$S$90*60+ZADANI!$S$91) ->  | L25: =IF($J25=0,"",ROUND(($E25+$G25+$I25)/3,3)) ->  | M25: =IF($J25=0,"",RANK($J25,$J$8:$J$27,0)) ->  | N25: 18
A26: =ZADANI!$T$1 -> 0 | B26: =IF(AND(ISBLANK(ZADANI!$T$90),ISBLANK(ZADANI!$T$91)),"",ZADANI!$T$90&" : "&ZADANI!$T$91) ->  | C26: =ZADANI!$T$92 -> 0 | D26: =ZADANI!$T$29 -> 0 | E26: =ZADANI!$T$30 ->  | F26: =ZADANI!$T$58 -> 0 | G26: =ZADANI!$T$59 ->  | H26: =ZADANI!$T$87 -> 0 | I26: =ZADANI!$T$88 ->  | J26: =ZADANI!$T$93 -> 0 | K26: =IF($J26=0,"",ZADANI!$T$90*60+ZADANI!$T$91) ->  | L26: =IF($J26=0,"",ROUND(($E26+$G26+$I26)/3,3)) ->  | M26: =IF($J26=0,"",RANK($J26,$J$8:$J$27,0)) ->  | N26: 19
A27: =ZADANI!$U$1 -> 0 | B27: =IF(AND(ISBLANK(ZADANI!$U$90),ISBLANK(ZADANI!$U$91)),"",ZADANI!$U$90&" : "&ZADANI!$U$91) ->  | C27: =ZADANI!$U$92 -> 0 | D27: =ZADANI!$U$29 -> 0 | E27: =ZADANI!$U$30 ->  | F27: =ZADANI!$U$58 -> 0 | G27: =ZADANI!$U$59 ->  | H27: =ZADANI!$U$87 -> 0 | I27: =ZADANI!$U$88 ->  | J27: =ZADANI!$U$93 -> 0 | K27: =IF($J27=0,"",ZADANI!$T$90*60+ZADANI!$T$91) ->  | L27: =IF($J27=0,"",ROUND(($E27+$G27+$I27)/3,3)) ->  | M27: =IF($J27=0,"",RANK($J27,$J$8:$J$27,0)) ->  | N27: 20
A32: podpis velitele soutěže | F32: podpis hlavního rozhodčího
